[Event "Titled Tuesday Blitz February 14 Late 2023"]
[White "Livaic, Leon"]
[Black "Darini, Pouria"]
[WhiteFideId "14531534"]
[BlackFideId "12502200"]
[WhiteElo "2579"]
[BlackElo "2401"]
[Result "1-0"]
[Round "03"]
[TimeControl "180+2"]
[Date "2023.02.14"]
[WhiteClock "0:00:08"]
[BlackClock "0:00:01"]

1. d4 {[%clk 0:03:00]}  Nf6 {[%clk 0:02:58]} 2. c4 {[%clk 0:03:01]}  g6 {[%clk 0:02:55]} 3. Nc3 {[%clk 0:03:01]}  d5 {[%clk 0:02:55]} 4. Nf3 {[%clk 0:02:58]}  Bg7 {[%clk 0:02:55]} 5. Bg5 {[%clk 0:02:58]}  Ne4 {[%clk 0:02:55]} 6. cxd5 {[%clk 0:02:59]}  Nxg5 {[%clk 0:02:56]} 7. Nxg5 {[%clk 0:03:00]}  e6 {[%clk 0:02:56]} 8. Qd2 {[%clk 0:03:00]}  exd5 {[%clk 0:02:56]} 9. Qe3+ {[%clk 0:03:00]}  Kf8 {[%clk 0:02:57]} 10. Qf4 {[%clk 0:03:00]}  Bf6 {[%clk 0:02:58]} 11. h4 {[%clk 0:03:00]}  h6 {[%clk 0:02:54]} 12. Nf3 {[%clk 0:03:00]}  Kg7 {[%clk 0:02:45]} 13. O-O-O {[%clk 0:03:00]}  Be6 {[%clk 0:02:45]} 14. e4 {[%clk 0:03:00]}  dxe4 {[%clk 0:02:42]} 15. Ne5 {[%clk 0:03:00]}  Nd7 {[%clk 0:01:48]} 16. Nxe4 {[%clk 0:02:59]}  Nb6 {[%clk 0:01:38]} 17. Bd3 {[%clk 0:01:34]}  Nd5 {[%clk 0:01:33]} 18. Qf3 {[%clk 0:01:34]}  Nb4 {[%clk 0:01:24]} 19. Bc4 {[%clk 0:01:29]}  Re8 {[%clk 0:00:50]} 20. Bxe6 {[%clk 0:01:05]}  Rxe6 {[%clk 0:00:50]} 21. Nc5 {[%clk 0:00:54]}  Rb6 {[%clk 0:00:32]} 22. a3 {[%clk 0:00:37]}  Na6 {[%clk 0:00:19]} 23. Ne4 {[%clk 0:00:25]}  Qd5 {[%clk 0:00:06]} 24. Nxf6 {[%clk 0:00:12]}  Qxf3 {[%clk 0:00:07]} 25. Nxf3 {[%clk 0:00:10]}  Rxf6 {[%clk 0:00:08]} 26. Rhe1 {[%clk 0:00:10]}  Rd8 {[%clk 0:00:07]} 27. Re7 {[%clk 0:00:11]}  Rc6+ {[%clk 0:00:07]} 28. Kb1 {[%clk 0:00:11]}  Kf8 {[%clk 0:00:05]} 29. Re2 {[%clk 0:00:11]}  Rcd6 {[%clk 0:00:05]} 30. Red2 {[%clk 0:00:09]}  Rd5 {[%clk 0:00:04]} 31. Ne5 {[%clk 0:00:09]}  c5 {[%clk 0:00:05]} 32. Nf3 {[%clk 0:00:07]}  Nc7 {[%clk 0:00:05]} 33. dxc5 {[%clk 0:00:07]}  Rxd2 {[%clk 0:00:05]} 34. Rxd2 {[%clk 0:00:08]}  Rc8 {[%clk 0:00:05]} 35. b4 {[%clk 0:00:06]}  a5 {[%clk 0:00:05]} 36. Kb2 {[%clk 0:00:06]}  axb4 {[%clk 0:00:05]} 37. axb4 {[%clk 0:00:06]}  Ne6 {[%clk 0:00:06]} 38. Nd4 {[%clk 0:00:05]}  Nf4 {[%clk 0:00:05]} 39. g3 {[%clk 0:00:05]}  Nd5 {[%clk 0:00:05]} 40. Kb3 {[%clk 0:00:05]}  Ne7 {[%clk 0:00:06]} 41. Nb5 {[%clk 0:00:05]}  Ra8 {[%clk 0:00:06]} 42. Rd7 {[%clk 0:00:06]}  Nc6 {[%clk 0:00:06]} 43. Rxb7 {[%clk 0:00:06]}  Ra1 {[%clk 0:00:06]} 44. Nd6 {[%clk 0:00:06]}  Rb1+ {[%clk 0:00:06]} 45. Kc3 {[%clk 0:00:07]}  Rc1+ {[%clk 0:00:06]} 46. Kb2 {[%clk 0:00:07]}  Rf1 {[%clk 0:00:06]} 47. Rxf7+ {[%clk 0:00:08]}  Kg8 {[%clk 0:00:05]} 48. b5 {[%clk 0:00:09]}  Nd4 {[%clk 0:00:05]} 49. b6 {[%clk 0:00:07]}  Re1 {[%clk 0:00:01]} 50. b7 {[%clk 0:00:07]}  Re2+ {[%clk 0:00:02]} 51. Kc3 {[%clk 0:00:07]}  Nc6 {[%clk 0:00:03]} 52. Rc7 {[%clk 0:00:07]}  Nb8 {[%clk 0:00:01]} 53. Rc8+ {[%clk 0:00:07]}  Re8 {[%clk 0:00:01]} 54. Rxe8+ {[%clk 0:00:08]} 1-0


[Site "https://www.chess.com"]

[Event "Titled Tuesday Blitz February 14 Late 2023"]
[White "Perez Ponsa, Federico"]
[Black "Golubka, Petro"]
[WhiteFideId "117927"]
[BlackFideId "14114224"]
[WhiteElo "2532"]
[BlackElo "2371"]
[Result "1-0"]
[Round "03"]
[TimeControl "180+2"]
[Date "2023.02.14"]
[WhiteClock "0:01:25"]
[BlackClock "0:00:06"]

1. e4 {[%clk 0:02:44]}  c5 {[%clk 0:02:59]} 2. Nf3 {[%clk 0:02:44]}  Nc6 {[%clk 0:02:59]} 3. d4 {[%clk 0:02:45]}  cxd4 {[%clk 0:02:59]} 4. Nxd4 {[%clk 0:02:46]}  e5 {[%clk 0:03:00]} 5. Nb5 {[%clk 0:02:45]}  d6 {[%clk 0:03:00]} 6. N1c3 {[%clk 0:02:46]}  a6 {[%clk 0:03:01]} 7. Na3 {[%clk 0:02:46]}  b5 {[%clk 0:03:01]} 8. Nd5 {[%clk 0:02:47]}  Nf6 {[%clk 0:03:02]} 9. Bg5 {[%clk 0:02:46]}  Be7 {[%clk 0:03:02]} 10. Bxf6 {[%clk 0:02:46]}  Bxf6 {[%clk 0:03:03]} 11. c3 {[%clk 0:02:46]}  O-O {[%clk 0:03:02]} 12. Nc2 {[%clk 0:02:46]}  Rb8 {[%clk 0:02:59]} 13. h4 {[%clk 0:02:43]}  Be6 {[%clk 0:02:54]} 14. Nce3 {[%clk 0:02:41]}  g6 {[%clk 0:02:49]} 15. g3 {[%clk 0:02:38]}  h5 {[%clk 0:02:49]} 16. Bh3 {[%clk 0:02:38]}  Bg7 {[%clk 0:02:50]} 17. Kf1 {[%clk 0:02:37]}  Ne7 {[%clk 0:02:50]} 18. Nxe7+ {[%clk 0:02:32]}  Qxe7 {[%clk 0:02:50]} 19. Kg2 {[%clk 0:02:29]}  Bh6 {[%clk 0:02:49]} 20. Nd5 {[%clk 0:02:29]}  Bxd5 {[%clk 0:02:48]} 21. Qxd5 {[%clk 0:02:29]}  Kg7 {[%clk 0:02:48]} 22. Rhd1 {[%clk 0:02:25]}  Rfd8 {[%clk 0:02:49]} 23. Rd3 {[%clk 0:02:14]}  a5 {[%clk 0:02:48]} 24. Rad1 {[%clk 0:02:15]}  a4 {[%clk 0:02:47]} 25. a3 {[%clk 0:02:14]}  Rb6 {[%clk 0:02:43]} 26. Qa2 {[%clk 0:02:05]}  Qb7 {[%clk 0:02:41]} 27. Rd5 {[%clk 0:02:05]}  Kh7 {[%clk 0:02:33]} 28. Kh2 {[%clk 0:02:00]}  Bg7 {[%clk 0:02:32]} 29. Qb1 {[%clk 0:01:58]}  Rc6 {[%clk 0:02:30]} 30. Bf1 {[%clk 0:01:57]}  Rb6 {[%clk 0:02:26]} 31. Qd3 {[%clk 0:01:57]}  Bf6 {[%clk 0:02:14]} 32. Qf3 {[%clk 0:01:56]}  Kg7 {[%clk 0:02:14]} 33. Kg2 {[%clk 0:01:55]}  Be7 {[%clk 0:02:11]} 34. Bd3 {[%clk 0:01:55]}  Rc8 {[%clk 0:02:08]} 35. Bb1 {[%clk 0:01:55]}  Rc5 {[%clk 0:02:07]} 36. Ba2 {[%clk 0:01:55]}  Bf8 {[%clk 0:02:07]} 37. Rh1 {[%clk 0:01:48]}  Qd7 {[%clk 0:02:00]} 38. Rhd1 {[%clk 0:01:40]}  Qb7 {[%clk 0:01:58]} 39. g4 {[%clk 0:01:36]}  hxg4 {[%clk 0:01:57]} 40. Qxg4 {[%clk 0:01:36]}  Rxd5 {[%clk 0:01:55]} 41. Bxd5 {[%clk 0:01:35]}  Qe7 {[%clk 0:01:56]} 42. Rd3 {[%clk 0:01:33]}  Rc6 {[%clk 0:01:32]} 43. Bxc6 {[%clk 0:01:28]}  f6 {[%clk 0:00:05]} 44. Rg3 {[%clk 0:01:27]}  Qf7 {[%clk 0:00:06]} 45. Bd5 {[%clk 0:01:26]}  f5 {[%clk 0:00:07]} 46. Bxf7 {[%clk 0:01:25]}  fxg4 {[%clk 0:00:06]} 47. Be8 {[%clk 0:01:25]} 1-0


[Site "https://www.chess.com"]

[Event "Titled Tuesday Blitz February 14 Late 2023"]
[White "Melkumyan, Hrant"]
[Black "Cardoso Cardoso, Jose Gabriel"]
[WhiteFideId "13302485"]
[BlackFideId "4430492"]
[WhiteElo "2645"]
[BlackElo "2492"]
[Result "1-0"]
[Round "03"]
[TimeControl "180+2"]
[Date "2023.02.14"]
[WhiteClock "0:00:10"]
[BlackClock "0:00:04"]

1. d4 {[%clk 0:02:17]}  d5 {[%clk 0:02:59]} 2. c4 {[%clk 0:02:17]}  e6 {[%clk 0:02:59]} 3. Nf3 {[%clk 0:02:16]}  Nf6 {[%clk 0:02:58]} 4. Nc3 {[%clk 0:02:16]}  c5 {[%clk 0:02:57]} 5. e3 {[%clk 0:02:15]}  Nc6 {[%clk 0:02:52]} 6. cxd5 {[%clk 0:02:15]}  exd5 {[%clk 0:02:53]} 7. Bb5 {[%clk 0:02:15]}  Bd6 {[%clk 0:02:47]} 8. dxc5 {[%clk 0:02:14]}  Bxc5 {[%clk 0:02:48]} 9. O-O {[%clk 0:02:15]}  O-O {[%clk 0:02:49]} 10. b3 {[%clk 0:02:15]}  Bg4 {[%clk 0:02:41]} 11. Be2 {[%clk 0:02:14]}  Bd6 {[%clk 0:02:38]} 12. Bb2 {[%clk 0:02:14]}  a6 {[%clk 0:02:38]} 13. h3 {[%clk 0:02:14]}  Bh5 {[%clk 0:02:22]} 14. Nh4 {[%clk 0:02:13]}  Bg6 {[%clk 0:02:12]} 15. Nxg6 {[%clk 0:02:13]}  hxg6 {[%clk 0:02:13]} 16. Bf3 {[%clk 0:02:04]}  Be5 {[%clk 0:02:12]} 17. Qd3 {[%clk 0:01:53]}  d4 {[%clk 0:01:44]} 18. exd4 {[%clk 0:01:53]}  Bxd4 {[%clk 0:01:43]} 19. Rad1 {[%clk 0:01:45]}  Be5 {[%clk 0:01:25]} 20. Qe2 {[%clk 0:01:28]}  Qc7 {[%clk 0:01:21]} 21. Bxc6 {[%clk 0:01:26]}  bxc6 {[%clk 0:00:51]} 22. Na4 {[%clk 0:01:26]}  Rfe8 {[%clk 0:00:48]} 23. Bxe5 {[%clk 0:01:15]}  Rxe5 {[%clk 0:00:49]} 24. Qc4 {[%clk 0:01:15]}  g5 {[%clk 0:00:35]} 25. Rc1 {[%clk 0:01:14]}  g4 {[%clk 0:00:23]} 26. hxg4 {[%clk 0:01:09]}  Rc8 {[%clk 0:00:20]} 27. Nc5 {[%clk 0:01:06]}  Rg5 {[%clk 0:00:15]} 28. f3 {[%clk 0:00:54]}  Qb6 {[%clk 0:00:14]} 29. b4 {[%clk 0:00:50]}  a5 {[%clk 0:00:13]} 30. a3 {[%clk 0:00:49]}  axb4 {[%clk 0:00:13]} 31. axb4 {[%clk 0:00:50]}  Nd5 {[%clk 0:00:12]} 32. Rb1 {[%clk 0:00:45]}  Nxb4 {[%clk 0:00:11]} 33. Rfc1 {[%clk 0:00:42]}  Rb8 {[%clk 0:00:09]} 34. Kh1 {[%clk 0:00:38]}  Rg6 {[%clk 0:00:09]} 35. Qf4 {[%clk 0:00:23]}  Rh6+ {[%clk 0:00:08]} 36. Kg1 {[%clk 0:00:23]}  Rf6 {[%clk 0:00:06]} 37. Qe5 {[%clk 0:00:20]}  Re6 {[%clk 0:00:05]} 38. Qc3 {[%clk 0:00:16]}  Re2 {[%clk 0:00:05]} 39. Qc4 {[%clk 0:00:15]}  Rd2 {[%clk 0:00:04]} 40. Kh2 {[%clk 0:00:11]}  Qc7+ {[%clk 0:00:04]} 41. Kh1 {[%clk 0:00:11]}  Qg3 {[%clk 0:00:04]} 42. Qf1 {[%clk 0:00:10]}  Qh4+ {[%clk 0:00:03]} 43. Kg1 {[%clk 0:00:10]}  Re8 {[%clk 0:00:01]} 44. Ne4 {[%clk 0:00:10]}  Rxe4 {[%clk 0:00:02]} 45. fxe4 {[%clk 0:00:10]}  Nd3 {[%clk 0:00:02]} 46. Rb8+ {[%clk 0:00:10]}  Kh7 {[%clk 0:00:02]} 47. Qf5+ {[%clk 0:00:10]}  g6 {[%clk 0:00:01]} 48. Qxf7+ {[%clk 0:00:10]}  Kh6 {[%clk 0:00:02]} 49. Rh8+ {[%clk 0:00:11]}  Kg5 {[%clk 0:00:03]} 50. Qe7+ {[%clk 0:00:11]}  Kf4 {[%clk 0:00:02]} 51. Qxh4 {[%clk 0:00:10]}  Ne5 {[%clk 0:00:03]} 52. Rf1+ {[%clk 0:00:09]}  Kxe4 {[%clk 0:00:04]} 53. Re1+ {[%clk 0:00:10]}  Kd5 {[%clk 0:00:04]} 54. Rd8+ {[%clk 0:00:10]} 1-0


[Site "https://www.chess.com"]

[Event "Titled Tuesday Blitz February 14 Late 2023"]
[White "Gutenev, Alexander"]
[Black "Madaminov, Mukhiddin"]
[WhiteFideId "4195540"]
[BlackFideId "14210703"]
[WhiteElo "2455"]
[BlackElo "2422"]
[Result "1/2-1/2"]
[Round "03"]
[TimeControl "180+2"]
[Date "2023.02.14"]
[WhiteClock "0:00:23"]
[BlackClock "0:00:07"]

1. e4 {[%clk 0:03:00]}  e5 {[%clk 0:02:58]} 2. Nf3 {[%clk 0:03:00]}  Nc6 {[%clk 0:02:58]} 3. Bb5 {[%clk 0:03:01]}  a6 {[%clk 0:02:59]} 4. Ba4 {[%clk 0:03:00]}  Nf6 {[%clk 0:02:59]} 5. d4 {[%clk 0:03:01]}  Nxe4 {[%clk 0:03:00]} 6. O-O {[%clk 0:03:00]}  b5 {[%clk 0:03:00]} 7. Bb3 {[%clk 0:03:00]}  d5 {[%clk 0:03:01]} 8. dxe5 {[%clk 0:03:00]}  Be6 {[%clk 0:03:01]} 9. c3 {[%clk 0:02:59]}  Be7 {[%clk 0:03:02]} 10. Nbd2 {[%clk 0:02:59]}  O-O {[%clk 0:03:02]} 11. Qe2 {[%clk 0:02:49]}  Nc5 {[%clk 0:02:58]} 12. Bc2 {[%clk 0:02:49]}  d4 {[%clk 0:02:59]} 13. cxd4 {[%clk 0:02:44]}  Nxd4 {[%clk 0:03:00]} 14. Nxd4 {[%clk 0:02:44]}  Qxd4 {[%clk 0:03:01]} 15. Nf3 {[%clk 0:02:40]}  Qc4 {[%clk 0:03:01]} 16. Qxc4 {[%clk 0:02:38]}  Bxc4 {[%clk 0:03:02]} 17. Rd1 {[%clk 0:02:37]}  Rfd8 {[%clk 0:03:02]} 18. Be3 {[%clk 0:02:36]}  Bd5 {[%clk 0:02:55]} 19. Nd4 {[%clk 0:02:34]}  Ne6 {[%clk 0:02:47]} 20. Nf5 {[%clk 0:02:24]}  Bf8 {[%clk 0:02:43]} 21. a4 {[%clk 0:02:20]}  c6 {[%clk 0:01:36]} 22. f3 {[%clk 0:01:50]}  g6 {[%clk 0:01:26]} 23. Nh6+ {[%clk 0:01:50]}  Kg7 {[%clk 0:01:04]} 24. Ng4 {[%clk 0:01:50]}  Bc5 {[%clk 0:01:00]} 25. Kf2 {[%clk 0:01:50]}  Rab8 {[%clk 0:00:35]} 26. a5 {[%clk 0:01:13]}  Bxe3+ {[%clk 0:00:09]} 27. Nxe3 {[%clk 0:01:12]}  Nc5 {[%clk 0:00:07]} 28. Nxd5 {[%clk 0:01:10]}  cxd5 {[%clk 0:00:07]} 29. Rac1 {[%clk 0:01:05]}  Rbc8 {[%clk 0:00:07]} 30. b4 {[%clk 0:01:00]}  Ne6 {[%clk 0:00:04]} 31. Bb3 {[%clk 0:01:00]}  Nf4 {[%clk 0:00:03]} 32. Rxc8 {[%clk 0:00:58]}  Rxc8 {[%clk 0:00:04]} 33. g3 {[%clk 0:00:49]}  Rc3 {[%clk 0:00:04]} 34. Bxd5 {[%clk 0:00:49]}  Rc2+ {[%clk 0:00:04]} 35. Ke3 {[%clk 0:00:47]}  Nxd5+ {[%clk 0:00:04]} 36. Rxd5 {[%clk 0:00:47]}  Rxh2 {[%clk 0:00:05]} 37. Rd7 {[%clk 0:00:42]}  Kf8 {[%clk 0:00:05]} 38. Kf4 {[%clk 0:00:33]}  h6 {[%clk 0:00:04]} 39. e6 {[%clk 0:00:30]}  fxe6 {[%clk 0:00:03]} 40. Ke5 {[%clk 0:00:30]}  Rh5+ {[%clk 0:00:04]} 41. Kxe6 {[%clk 0:00:29]}  Rf5 {[%clk 0:00:04]} 42. f4 {[%clk 0:00:29]}  h5 {[%clk 0:00:05]} 43. Rd5 {[%clk 0:00:20]}  Rf7 {[%clk 0:00:03]} 44. Rd8+ {[%clk 0:00:20]}  Kg7 {[%clk 0:00:03]} 45. Ra8 {[%clk 0:00:18]}  h4 {[%clk 0:00:02]} 46. gxh4 {[%clk 0:00:19]}  Rxf4 {[%clk 0:00:03]} 47. Ke5 {[%clk 0:00:18]}  Rxh4 {[%clk 0:00:02]} 48. Rxa6 {[%clk 0:00:18]}  Rxb4 {[%clk 0:00:03]} 49. Rb6 {[%clk 0:00:19]}  Kh6 {[%clk 0:00:04]} 50. a6 {[%clk 0:00:18]}  Kg5 {[%clk 0:00:04]} 51. a7 {[%clk 0:00:18]}  Ra4 {[%clk 0:00:05]} 52. Rb7 {[%clk 0:00:18]}  b4 {[%clk 0:00:03]} 53. Kd4 {[%clk 0:00:18]}  Kg4 {[%clk 0:00:03]} 54. Kc4 {[%clk 0:00:18]}  g5 {[%clk 0:00:04]} 55. Kb3 {[%clk 0:00:18]}  Ra6 {[%clk 0:00:03]} 56. Kxb4 {[%clk 0:00:18]}  Kf3 {[%clk 0:00:02]} 57. Kb5 {[%clk 0:00:19]}  Ra1 {[%clk 0:00:03]} 58. Kb6 {[%clk 0:00:19]}  Rb1+ {[%clk 0:00:02]} 59. Kc7 {[%clk 0:00:19]}  Ra1 {[%clk 0:00:01]} 60. Kb8 {[%clk 0:00:20]}  g4 {[%clk 0:00:02]} 61. a8=Q {[%clk 0:00:19]}  Rxa8+ {[%clk 0:00:03]} 62. Kxa8 {[%clk 0:00:20]}  g3 {[%clk 0:00:04]} 63. Rf7+ {[%clk 0:00:20]}  Ke2 {[%clk 0:00:04]} 64. Kb7 {[%clk 0:00:21]}  g2 {[%clk 0:00:04]} 65. Rg7 {[%clk 0:00:22]}  Kf2 {[%clk 0:00:05]} 66. Kc6 {[%clk 0:00:22]}  g1=Q {[%clk 0:00:06]} 67. Rxg1 {[%clk 0:00:23]}  Kxg1 {[%clk 0:00:07]} 1/2-1/2


[Site "https://www.chess.com"]

[Event "Titled Tuesday Blitz February 14 Late 2023"]
[White "Solon, Nathan"]
[Black "Ibarra Jerez, Jose Carlos"]
[WhiteFideId "2017229"]
[BlackFideId "2226332"]
[WhiteElo "2306"]
[BlackElo "2563"]
[Result "1-0"]
[Round "03"]
[TimeControl "180+2"]
[Date "2023.02.14"]
[WhiteClock "0:00:23"]
[BlackClock "0:00:25"]

1. Nf3 {[%clk 0:03:00]}  d6 {[%clk 0:02:53]} 2. g3 {[%clk 0:02:56]}  Nf6 {[%clk 0:02:51]} 3. Bg2 {[%clk 0:02:56]}  g6 {[%clk 0:02:51]} 4. O-O {[%clk 0:02:56]}  Bg7 {[%clk 0:02:52]} 5. d4 {[%clk 0:02:54]}  O-O {[%clk 0:02:52]} 6. c4 {[%clk 0:02:54]}  Bf5 {[%clk 0:02:53]} 7. Nh4 {[%clk 0:02:50]}  Be4 {[%clk 0:02:53]} 8. f3 {[%clk 0:02:46]}  Bc6 {[%clk 0:02:53]} 9. e4 {[%clk 0:02:43]}  e5 {[%clk 0:02:53]} 10. d5 {[%clk 0:02:41]}  Bd7 {[%clk 0:02:53]} 11. Nc3 {[%clk 0:02:39]}  a5 {[%clk 0:02:53]} 12. Be3 {[%clk 0:02:38]}  Na6 {[%clk 0:02:53]} 13. a3 {[%clk 0:02:35]}  Nh5 {[%clk 0:02:52]} 14. Rb1 {[%clk 0:02:21]}  Bf6 {[%clk 0:02:46]} 15. Qe1 {[%clk 0:01:57]}  Nf4 {[%clk 0:02:44]} 16. gxf4 {[%clk 0:01:50]}  Bxh4 {[%clk 0:02:44]} 17. Qd2 {[%clk 0:01:50]}  exf4 {[%clk 0:02:39]} 18. Bxf4 {[%clk 0:01:50]}  a4 {[%clk 0:02:37]} 19. Be3 {[%clk 0:01:36]}  f5 {[%clk 0:02:29]} 20. f4 {[%clk 0:01:30]}  fxe4 {[%clk 0:02:11]} 21. Nxe4 {[%clk 0:01:30]}  Bf5 {[%clk 0:02:11]} 22. Rbc1 {[%clk 0:01:28]}  Bxe4 {[%clk 0:01:47]} 23. Bxe4 {[%clk 0:01:29]}  Qe7 {[%clk 0:01:47]} 24. Bc2 {[%clk 0:01:26]}  Bf6 {[%clk 0:01:42]} 25. Rce1 {[%clk 0:01:23]}  Qd7 {[%clk 0:01:36]} 26. f5 {[%clk 0:01:21]}  g5 {[%clk 0:01:34]} 27. Kh1 {[%clk 0:01:14]}  Qg7 {[%clk 0:01:26]} 28. Rg1 {[%clk 0:01:12]}  h6 {[%clk 0:01:25]} 29. h4 {[%clk 0:01:08]}  Qh8 {[%clk 0:01:16]} 30. Rg2 {[%clk 0:01:02]}  Rf7 {[%clk 0:01:13]} 31. Reg1 {[%clk 0:00:58]}  Rh7 {[%clk 0:01:07]} 32. Qd1 {[%clk 0:00:49]}  Re8 {[%clk 0:01:05]} 33. Bc1 {[%clk 0:00:47]}  Nc5 {[%clk 0:01:04]} 34. Qh5 {[%clk 0:00:46]}  Rf8 {[%clk 0:00:58]} 35. Re1 {[%clk 0:00:39]}  Qg7 {[%clk 0:00:49]} 36. Re8 {[%clk 0:00:34]}  Rxe8 {[%clk 0:00:40]} 37. Qxe8+ {[%clk 0:00:35]}  Qf8 {[%clk 0:00:41]} 38. Qg6+ {[%clk 0:00:34]}  Kh8 {[%clk 0:00:39]} 39. hxg5 {[%clk 0:00:31]}  hxg5+ {[%clk 0:00:38]} 40. Rh2 {[%clk 0:00:29]}  Rxh2+ {[%clk 0:00:37]} 41. Kxh2 {[%clk 0:00:29]}  Qg7 {[%clk 0:00:34]} 42. Qe8+ {[%clk 0:00:26]}  Kh7 {[%clk 0:00:34]} 43. Kg2 {[%clk 0:00:23]}  Qe7 {[%clk 0:00:26]} 44. Qxe7+ {[%clk 0:00:21]}  Bxe7 {[%clk 0:00:26]} 45. f6+ {[%clk 0:00:22]}  Kg8 {[%clk 0:00:24]} 46. fxe7 {[%clk 0:00:23]}  Kf7 {[%clk 0:00:25]} 47. Bxg5 {[%clk 0:00:23]} 1-0


[Site "https://www.chess.com"]

[Event "Titled Tuesday Blitz February 14 Late 2023"]
[White "Jaracz, Pawel"]
[Black "Paichadze, Luka"]
[WhiteFideId "1102222"]
[BlackFideId "13602934"]
[WhiteElo "2467"]
[BlackElo "2515"]
[Result "1-0"]
[Round "03"]
[TimeControl "180+2"]
[Date "2023.02.14"]
[WhiteClock "0:00:03"]
[BlackClock "0:00:03"]

1. e4 {[%clk 0:03:00]}  c6 {[%clk 0:03:00]} 2. d4 {[%clk 0:02:59]}  d5 {[%clk 0:03:00]} 3. e5 {[%clk 0:02:58]}  c5 {[%clk 0:03:00]} 4. dxc5 {[%clk 0:02:57]}  e6 {[%clk 0:03:00]} 5. a3 {[%clk 0:02:55]}  Bxc5 {[%clk 0:02:58]} 6. Bd3 {[%clk 0:02:54]}  Nc6 {[%clk 0:02:58]} 7. Nf3 {[%clk 0:02:54]}  Nge7 {[%clk 0:02:57]} 8. b4 {[%clk 0:02:53]}  Bb6 {[%clk 0:02:57]} 9. Bb2 {[%clk 0:02:50]}  Ng6 {[%clk 0:02:56]} 10. O-O {[%clk 0:02:49]}  O-O {[%clk 0:02:53]} 11. Re1 {[%clk 0:02:40]}  Nf4 {[%clk 0:02:29]} 12. Bf1 {[%clk 0:02:37]}  f5 {[%clk 0:02:24]} 13. exf6 {[%clk 0:02:35]}  gxf6 {[%clk 0:02:24]} 14. c4 {[%clk 0:02:34]}  e5 {[%clk 0:02:09]} 15. g3 {[%clk 0:02:03]}  Nh3+ {[%clk 0:02:08]} 16. Bxh3 {[%clk 0:02:03]}  Bxh3 {[%clk 0:02:09]} 17. cxd5 {[%clk 0:02:01]}  Ne7 {[%clk 0:02:08]} 18. Nc3 {[%clk 0:01:52]}  Rc8 {[%clk 0:02:05]} 19. Nh4 {[%clk 0:01:45]}  Bd4 {[%clk 0:02:01]} 20. Rc1 {[%clk 0:01:36]}  Qd7 {[%clk 0:01:43]} 21. Qd2 {[%clk 0:01:29]}  Rc4 {[%clk 0:01:30]} 22. d6 {[%clk 0:01:17]}  Nf5 {[%clk 0:01:19]} 23. Nxf5 {[%clk 0:01:12]}  Qxf5 {[%clk 0:01:20]} 24. Qe2 {[%clk 0:01:03]}  Qe6 {[%clk 0:00:22]} 25. Ne4 {[%clk 0:01:00]}  Rxc1 {[%clk 0:00:20]} 26. Rxc1 {[%clk 0:00:57]}  Bg4 {[%clk 0:00:20]} 27. Qd2 {[%clk 0:00:50]}  Bf3 {[%clk 0:00:18]} 28. Qd3 {[%clk 0:00:39]}  Bxe4 {[%clk 0:00:18]} 29. Qxe4 {[%clk 0:00:40]}  Bxb2 {[%clk 0:00:18]} 30. Rc7 {[%clk 0:00:40]}  Rf7 {[%clk 0:00:17]} 31. Qxb7 {[%clk 0:00:36]}  Bd4 {[%clk 0:00:09]} 32. d7 {[%clk 0:00:19]}  Rf8 {[%clk 0:00:08]} 33. Rc8 {[%clk 0:00:12]}  Bb6 {[%clk 0:00:08]} 34. Rxf8+ {[%clk 0:00:07]}  Kxf8 {[%clk 0:00:09]} 35. Qc8+ {[%clk 0:00:08]}  Ke7 {[%clk 0:00:09]} 36. Qe8+ {[%clk 0:00:08]}  Kd6 {[%clk 0:00:10]} 37. d8=Q+ {[%clk 0:00:08]}  Bxd8 {[%clk 0:00:10]} 38. Qxd8+ {[%clk 0:00:09]}  Kc6 {[%clk 0:00:11]} 39. Qd3 {[%clk 0:00:08]}  e4 {[%clk 0:00:10]} 40. Qd4 {[%clk 0:00:07]}  a6 {[%clk 0:00:08]} 41. a4 {[%clk 0:00:07]}  f5 {[%clk 0:00:07]} 42. a5 {[%clk 0:00:06]}  Kb5 {[%clk 0:00:06]} 43. Qc5+ {[%clk 0:00:06]}  Ka4 {[%clk 0:00:06]} 44. Kg2 {[%clk 0:00:06]}  Qb3 {[%clk 0:00:04]} 45. Qb6 {[%clk 0:00:02]}  Qf3+ {[%clk 0:00:04]} 46. Kg1 {[%clk 0:00:02]}  Qd1+ {[%clk 0:00:04]} 47. Kg2 {[%clk 0:00:03]}  Qf3+ {[%clk 0:00:04]} 48. Kg1 {[%clk 0:00:03]}  Qd1+ {[%clk 0:00:03]} 49. Kg2 {[%clk 0:00:03]}  Qd3 {[%clk 0:00:04]} 50. Qc6+ {[%clk 0:00:02]}  Kxb4 {[%clk 0:00:04]} 51. Qb6+ {[%clk 0:00:02]}  Ka4 {[%clk 0:00:04]} 52. h4 {[%clk 0:00:02]}  h5 {[%clk 0:00:04]} 53. Qc5 {[%clk 0:00:02]}  Qf3+ {[%clk 0:00:04]} 54. Kg1 {[%clk 0:00:02]}  Qd1+ {[%clk 0:00:02]} 55. Kg2 {[%clk 0:00:02]}  Qf3+ {[%clk 0:00:03]} 56. Kg1 {[%clk 0:00:03]}  f4 {[%clk 0:00:04]} 57. Qc4+ {[%clk 0:00:02]}  Kxa5 {[%clk 0:00:04]} 58. Qc5+ {[%clk 0:00:02]}  Ka4 {[%clk 0:00:04]} 59. Qc4+ {[%clk 0:00:03]}  Ka3 {[%clk 0:00:05]} 60. Qxa6+ {[%clk 0:00:03]}  Kb2 {[%clk 0:00:06]} 61. Qb5+ {[%clk 0:00:03]}  Kc2 {[%clk 0:00:06]} 62. Qc6+ {[%clk 0:00:04]}  Kd2 {[%clk 0:00:06]} 63. Qd6+ {[%clk 0:00:04]}  Ke2 {[%clk 0:00:06]} 64. Qxf4 {[%clk 0:00:05]}  Qd3 {[%clk 0:00:05]} 65. Kg2 {[%clk 0:00:03]}  Qc4 {[%clk 0:00:02]} 66. Qe3+ {[%clk 0:00:03]}  Kd1 {[%clk 0:00:03]} 67. Kg1 {[%clk 0:00:03]}  Qd4 {[%clk 0:00:03]} 68. Qxd4+ {[%clk 0:00:03]} 1-0


[Site "https://www.chess.com"]